bitfinex/quotes_ETHUSD_20250112
["timestamp","ask_amount","ask_price","bid_price","bid_amount"]
[1736658361248,0.205,3287.6,3287.1,2.59120604]
[1736658361615,0.205,3287.6,3287.2,1.43174696]
[1736658361800,0.205,3287.7,3287.5,0.0075]
[1736658363948,1.0112,3288.0,3287.5,0.0075]
[1736658364144,1.325204,3288.0,3287.5,0.0075]
[1736658366351,1.0112,3288.0,3287.5,0.0075]
[1736658370622,0.205,3288.0,3287.6,1.2033259]
[1736658374256,0.205,3288.0,3287.5,0.0075]
[1736658374876,0.8198,3287.9,3287.1,5.37]
[1736658375173,0.8198,3287.6,3287.2,0.0075]
[1736658375532,0.04039297,3287.5,3287.2,0.0075]
[1736658383971,0.8198,3287.6,3287.2,0.0075]
[1736658385631,0.8198,3287.6,3287.3,0.22815677]
[1736658385848,0.04029927,3287.5,3287.3,0.22815677]
[1736658386835,0.04029927,3287.5,3287.2,0.0075]
[1736658387070,0.8198,3287.6,3287.2,0.0075]
[1736658389060,0.204,3287.6,3287.2,0.04541845]
[1736658389247,3.8021,3288.2,3287.5,1.2033259]
[1736658389447,0.204,3288.0,3287.7,1.2033259]
[1736658389668,0.204,3288.1,3287.7,1.2033259]
[1736658390368,0.04049644,3288.0,3287.7,1.2033259]
[1736658390773,0.04049644,3288.0,3287.8,0.22822107]
[1736658392250,0.04049644,3288.0,3287.7,1.2033259]
[1736658396204,0.04049644,3288.0,3287.8,0.0075]
[1736658396405,0.04049644,3288.0,3287.9,1.2033259]
[1736658396710,0.04105854,3288.0,3287.9,1.2033259]
[1736658396861,0.8021,3288.2,3287.9,1.2033259]
[1736658400111,0.204,3288.3,3287.9,1.2033259]
[1736658404616,0.204,3288.3,3288.1,1.2033259]
[1736658405326,0.04132849,3288.2,3288.1,1.2108259]
[1736658405734,0.8068,3288.7,3288.1,1.2108259]
[1736658405941,0.204,3288.6,3288.1,1.2108259]
[1736658406232,0.204,3288.5,3288.2,0.8288]
[1736658409440,0.8068,3288.7,3288.2,0.8288]
[1736658409612,0.204,3288.6,3288.2,0.8288]
[1736658410040,0.204,3288.6,3288.1,0.0075]
[1736658418818,2.33256,3288.6,3288.1,0.0075]
[1736658419019,2.946496,3288.6,3288.1,0.0075]
[1736658419247,2.12869,3288.4,3287.8,6.1835]
[1736658419429,2.12869,3288.4,3287.9,0.0075]
[1736658420220,0.0414775,3288.3,3287.9,0.0075]
[1736658421073,0.7942775,3288.3,3287.9,0.0075]
[1736658425868,0.7942775,3288.3,3288.0,0.22827206]
[1736658427069,0.7942775,3288.3,3287.9,0.0075]
[1736658435272,0.0414775,3288.3,3287.9,0.0075]
[1736658435588,0.0414775,3288.3,3288.0,0.22831672]
[1736658436634,0.0414775,3288.3,3287.9,0.96059659]
[1736658439050,0.0414775,3288.3,3288.0,0.22836828]
[1736658440292,0.0414775,3288.3,3287.9,0.0075]
[1736658442888,0.0414775,3288.3,3288.0,0.22840803]
[1736658443208,0.9568,3288.5,3288.0,0.22840803]
[1736658443389,0.03872929,3288.2,3288.0,0.22840803]
[1736658443705,0.9568,3288.5,3288.0,0.22840803]
[1736658444252,0.9568,3288.5,3288.1,0.22840803]
[1736658445352,1.265339,3288.5,3287.9,0.0075]
[1736658450094,0.03887273,3288.4,3287.9,0.0075]
[1736658451017,0.03887273,3288.4,3288.3,1.2108259]
[1736658451215,0.204,3289.2,3288.4,0.8441]
[1736658451515,0.204,3289.1,3288.4,0.8441]
[1736658451722,0.204,3289.1,3288.4,0.87450629]
[1736658452031,0.812753,3289.1,3288.4,0.87450629]
[1736658452625,0.812753,3289.1,3288.4,0.8441]
[1736658453725,0.608753,3289.1,3288.4,0.8441]
[1736658453893,0.204,3289.0,3288.4,0.8441]
[1736658456620,0.204,3289.0,3288.5,1.2033259]
[1736658457122,0.204,3289.0,3288.5,1.62398412]
[1736658461948,0.204,3289.0,3288.5,1.2033259]
[1736658464750,0.204,3289.0,3288.6,0.0075]
[1736658465045,0.204,3289.0,3288.7,0.8076]
[1736658465202,0.03907735,3288.9,3288.7,0.8076]
[1736658465643,0.204,3289.1,3288.7,0.8076]
[1736658465944,0.204,3289.1,3288.7,1.00944259]
[1736658471837,0.204,3289.1,3288.6,0.0075]
[1736658480173,0.03948734,3289.0,3288.6,0.0075]
[1736658481872,0.84138734,3289.0,3288.6,0.0075]
[1736658515851,0.03948734,3289.0,3288.6,0.0075]
[1736658518797,0.03948734,3289.0,3288.5,2.00583138]
[1736658520506,0.03948734,3289.0,3288.5,1.9754259]
[1736658521303,0.03948734,3289.0,3288.5,2.00583138]
[1736658528409,0.9804,3289.2,3288.5,2.00583138]
[1736658528559,0.03822274,3288.9,3288.5,2.00583138]
[1736658528896,0.9804,3289.2,3288.5,2.00583138]
[1736658538013,0.7764,3289.2,3288.9,1.2033259]
[1736658538312,0.204,3289.6,3289.1,1.2033259]
[1736658538615,0.03720186,3289.5,3289.1,1.2033259]
[1736658538972,0.204,3289.7,3289.1,1.2033259]
[1736658540275,0.03731482,3289.6,3289.1,1.2033259]
[1736658542074,0.9657,3289.8,3289.1,1.9944259]
[1736658547818,0.7617,3289.8,3289.1,1.9944259]
[1736658547986,0.9657,3289.8,3289.1,2.40973548]
[1736658549518,0.9657,3289.8,3289.3,1.2033259]
[1736658551826,0.7617,3289.8,3289.3,1.2033259]
[1736658555232,0.03652716,3289.7,3289.3,1.2033259]
[1736658555733,0.7617,3289.8,3289.3,1.2033259]
[1736658557199,0.7617,3289.8,3289.3,1.66241243]
[1736658567349,0.7617,3289.8,3289.3,1.2033259]
[1736658567544,1.2033259,3289.5,3288.9,5.37]
[1736658567850,0.7687,3289.2,3288.3,11.05060361]
[1736658568002,0.204,3289.1,3288.3,11.05060361]
[1736658568202,0.7687,3289.0,3288.4,0.0225]
[1736658568617,0.03619383,3288.9,3288.4,0.0225]
[1736658569306,0.7687,3288.8,3288.4,0.0225]
[1736658569634,0.03608321,3288.7,3288.4,0.0225]
[1736658570152,0.7687,3288.8,3288.4,0.0225]
[1736658570451,0.03628819,3288.7,3288.4,0.0225]
[1736658570949,0.7687,3288.8,3288.4,0.0225]
[1736658576842,0.7687,3288.8,3288.4,0.0529064]
[1736658579775,0.7687,3288.8,3288.5,1.2033259]
[1736658589384,0.7687,3288.8,3288.4,0.05290639]
[1736658589770,0.7687,3288.8,3288.4,0.0225]
[1736658590591,0.7687,3288.8,3288.3,5.37]
[1736658590953,0.03571014,3288.7,3288.3,5.37]
[1736658591452,0.7687,3288.8,3288.3,0.0075]
[1736658599389,0.7687,3288.8,3288.2,1.2033259]
[1736658599893,0.8287,3288.7,3288.2,1.2033259]
[1736658607908,0.8287,3288.7,3288.0,1.2033259]
[1736658608111,0.03546246,3288.6,3288.0,1.2033259]
[1736658608405,0.7761,3288.5,3288.0,1.2033259]
[1736658615217,2.12876,3288.3,3287.5,9.84727771]
[1736658615375,0.7632,3288.1,3287.5,9.84727771]
[1736658615580,0.204,3288.0,3287.5,9.84727771]
[1736658615781,0.7632,3287.9,3287.5,5.37]
[1736658618623,0.7632,3287.9,3287.4,0.58]
[1736658619121,0.7632,3287.9,3287.5,1.2033259]
[1736658619623,0.7632,3287.9,3287.5,1.1533259]
[1736658625163,0.7632,3287.9,3287.2,1.2033259]
[1736658625366,0.03333113,3287.8,3287.2,1.2033259]
[1736658625507,0.7988,3287.7,3287.0,1.2033259]
[1736658625812,0.7988,3287.7,3287.1,0.58]
[1736658627242,0.7988,3287.7,3287.1,0.5725]
[1736658628744,0.7988,3287.7,3287.1,0.0225]
[1736658629922,1.091582,3287.7,3287.1,0.0225]
[1736658630136,0.82914613,3287.6,3287.1,0.0225]
[1736658631650,0.82914613,3287.6,3287.1,0.015]
[1736658632227,0.89106439,3287.6,3287.1,0.015]
[1736658636849,0.7988,3287.6,3287.1,0.015]
[1736658637828,0.09206276,3287.5,3287.1,0.015]
[1736658638352,0.7988,3287.4,3287.1,0.015]
[1736658641155,0.7988,3287.4,3286.9,6.5733259]
[1736658645141,0.8026,3287.2,3286.7,1.2033259]
[1736658645655,0.09179727,3287.1,3286.7,1.23374791]
[1736658646164,0.8026,3287.2,3286.7,1.23374791]
[1736658646725,0.8026,3287.2,3286.9,1.2033259]
[1736658674165,0.8026,3287.2,3286.8,2.12972]
[1736658680879,0.8026,3287.2,3286.9,1.2033259]
[1736658696494,0.8026,3287.2,3286.9,3.3329859]
[1736658700059,0.8026,3287.2,3286.9,1.2033259]
[1736658700228,0.8026,3287.2,3286.7,3.3331059]
[1736658702151,0.8026,3287.2,3286.8,2.12968]
[1736658703165,0.8026,3287.2,3286.9,2.12965]
[1736658703366,0.8026,3287.2,3286.9,3.3329759]
[1736658710880,0.8026,3287.2,3286.9,1.2033259]
[1736658711043,0.8026,3287.2,3286.7,3.3330959]
[1736658713447,0.8026,3287.2,3286.9,1.2033259]
[1736658721867,0.8026,3287.2,3287.1,1.2033259]
[1736658723316,0.8026,3287.2,3286.9,1.2033259]
[1736658740249,0.8026,3287.2,3286.7,3.3480859]
[1736658741042,1.0076,3287.2,3286.7,3.3480859]
[1736658742249,0.774,3287.1,3286.5,5.37]
[1736658742924,0.774,3286.9,3286.5,5.37]
[1736658743131,0.774,3286.9,3286.3,1.2033259]
[1736658744056,0.774,3286.9,3286.1,1.2033259]
[1736658745232,0.774,3286.7,3286.1,1.2033259]
[1736658747153,0.774,3286.7,3286.2,0.22819474]
[1736658748648,0.08828495,3286.6,3286.2,0.22819474]
[1736658748853,0.774,3286.5,3286.1,1.2033259]
[1736658749081,0.204,3286.4,3286.1,1.2033259]
[1736658750684,0.204,3286.4,3285.9,1.2033259]
[1736658750894,0.774,3286.3,3285.9,1.2033259]
[1736658751059,0.86198,3286.3,3285.9,1.2033259]
[1736658751265,0.774,3286.3,3285.9,1.2033259]
[1736658753967,0.774,3286.3,3286.1,1.2033259]
[1736658754168,0.204,3286.4,3286.1,1.2033259]
[1736658765188,0.0879237,3286.3,3286.1,1.2033259]
[1736658772993,0.0879237,3286.3,3286.2,0.22835681]
[1736658773922,0.0879237,3286.3,3286.1,2.0289259]
[1736658777230,0.0879237,3286.3,3286.2,0.2284878]
[1736658779041,0.205,3286.5,3286.2,0.2284878]
[1736658779899,0.205,3286.5,3286.1,2.0289259]
[1736658780394,0.91403852,3286.4,3286.1,1.2033259]
[1736658780937,0.08493852,3286.4,3286.1,1.2033259]
[1736658782138,0.08493852,3286.4,3286.2,0.2285417]
[1736658783335,0.08493852,3286.4,3286.2,0.2285417]
[1736658783499,0.08493852,3286.4,3286.3,0.2285417]
[1736658787441,0.08493852,3286.4,3286.1,1.2033259]
[1736658787740,0.08493852,3286.4,3286.3,1.9603259]
[1736658788149,0.205,3286.6,3286.3,1.9603259]
[1736658788520,0.825,3286.9,3286.5,1.2033259]
[1736658788709,1.03,3286.9,3286.5,1.2033259]
[1736658789408,0.825,3286.9,3286.6,0.22846853]
[1736658789610,0.205,3287.0,3286.6,0.22846853]
[1736658790509,0.205,3287.0,3286.7,0.22846853]
[1736658791513,0.205,3287.0,3286.5,1.2033259]
[1736658791751,0.205,3287.0,3286.6,0.757]
[1736658792616,0.205,3287.0,3286.7,1.2033259]
[1736658795329,0.08472534,3286.9,3286.7,1.2033259]
[1736658804061,0.204,3287.0,3286.7,1.2033259]
[1736658805258,2.92001,3287.3,3286.7,1.2033259]
[1736658805419,0.204,3287.2,3286.7,1.2033259]
[1736658805625,0.7906,3287.3,3286.9,1.2033259]
[1736658805823,0.204,3287.2,3286.9,1.2033259]
[1736658810169,0.204,3287.3,3287.1,1.2033259]
[1736658825082,0.08252442,3287.2,3287.1,1.2033259]
[1736658825402,0.204,3287.3,3287.1,1.2033259]
[1736658838019,0.204,3287.5,3287.1,1.2033259]
[1736658838615,0.7906,3287.6,3287.1,1.2033259]
[1736658838917,0.204,3287.5,3287.1,1.2033259]
[1736658840219,0.08259892,3287.4,3287.1,1.2033259]
[1736658840874,0.08259892,3287.4,3287.3,1.2033259]
[1736658846186,0.08259892,3287.4,3287.1,1.2033259]
[1736658846387,0.204,3287.5,3287.1,1.2033259]
[1736658846588,0.07973104,3287.3,3287.1,1.2033259]
[1736658846783,0.204,3287.5,3287.1,3.74910252]
[1736658846983,0.7603,3288.1,3287.5,1.3748]
[1736658847186,0.9643,3288.1,3287.7,1.2033259]
[1736658847696,0.9643,3288.1,3287.5,2.5706259]
[1736658848110,0.9643,3288.1,3287.6,0.22847712]
[1736658849938,0.9643,3288.1,3287.5,2.5706259]
[1736658851339,0.9643,3288.1,3287.5,3.04062749]
[1736658852232,0.9643,3288.1,3287.6,0.03041399]
[1736658853539,0.9643,3288.1,3287.5,3.04062749]
[1736658855132,0.08007937,3288.0,3287.5,3.04062749]
[1736658858036,0.08007937,3288.0,3287.6,0.03041398]
[1736658858205,0.08007937,3288.0,3287.5,3.04062749]
[1736658858407,0.08007937,3288.0,3287.6,0.03041398]
[1736658859104,0.08007937,3288.0,3287.5,3.04062749]
[1736658861649,0.08007937,3288.0,3287.6,0.03041397]
[1736658865548,0.08007937,3288.0,3287.5,3.04062749]
[1736658865736,0.28407937,3288.0,3287.6,0.03041397]
[1736658866738,0.28407937,3288.0,3287.7,1.2033259]
[1736658866940,0.28407937,3288.0,3287.7,1.72335505]
[1736658873563,0.08007937,3288.0,3287.7,1.72335505]
[1736658875061,0.08007937,3288.0,3287.9,1.2108259]
[1736658875261,0.08007937,3288.0,3287.9,1.80644844]
[1736658875462,0.204,3288.3,3287.9,1.80644844]
[1736658875622,0.204,3288.3,3288.1,1.2033259]
[1736658878858,0.7906,3288.4,3288.1,1.2033259]
[1736658882066,7.24468,3290.0,3288.2,0.5725]
[1736658882236,2.12818,3289.2,3288.6,1.2033259]
[1736658882428,0.8322,3289.1,3288.6,1.23373239]
[1736658882626,0.8322,3289.1,3288.6,1.2033259]
[1736658882627,0.91389336,3289.1,3288.6,1.2033259]
[1736658884052,0.204,3289.0,3288.6,1.2033259]
[1736658884362,0.08175057,3288.9,3288.6,1.2033259]
[1736658884944,0.204,3289.0,3288.6,1.2033259]
[1736658885145,0.08175057,3288.9,3288.6,1.2033259]
[1736658886685,0.08175057,3288.9,3288.6,1.82314889]
[1736658887048,0.204,3289.0,3288.6,1.82314889]
[1736658887951,0.204,3289.0,3288.6,2.29718129]
[1736658890071,0.8322,3289.1,3288.6,2.29718129]
[1736658890291,0.204,3289.0,3288.6,2.32758565]
[1736658890491,0.204,3289.0,3288.6,2.29718129]
[1736658890791,0.204,3289.0,3288.6,2.32758566]
[1736658890946,0.204,3289.0,3288.6,1.70776267]
[1736658893455,0.8322,3289.1,3288.6,1.70776267]
[1736658893456,1.0362,3289.1,3288.6,1.70776267]
[1736658893901,1.0362,3289.1,3288.6,1.2033259]
[1736658894890,1.0362,3289.1,3288.6,1.23373027]
[1736658900403,0.08204773,3289.0,3288.6,1.23373027]
[1736658900603,0.28604773,3289.0,3288.6,1.23373027]
[1736658901983,0.08204773,3289.0,3288.6,1.23373027]
[1736658902186,0.28604773,3289.0,3288.6,1.6457823]
[1736658902400,0.28604773,3289.0,3288.7,0.7918]
[1736658903497,0.08204773,3289.0,3288.7,0.7918]
[1736658903906,0.204,3289.1,3288.7,0.7918]
[1736658905987,0.204,3289.1,3288.7,0.82220344]
[1736658907019,0.204,3289.1,3288.7,2.95067344]
[1736658907178,0.204,3289.1,3288.8,1.2033259]
[1736658908380,0.7968,3289.3,3289.0,1.9696259]
[1736658908381,0.204,3289.3,3289.0,1.9696259]
[1736658909128,0.08271181,3289.2,3289.0,1.9696259]
[1736658909426,0.204,3289.3,3289.0,1.9696259]
[1736658909607,0.204,3289.3,3289.1,0.20075293]
[1736658911321,0.204,3289.3,3288.9,0.5575]
[1736658911616,0.9563,3289.3,3288.9,0.5575]
[1736658913595,0.9563,3289.3,3289.0,0.03040118]
[1736658916331,0.9563,3289.3,3288.9,0.5575]
[1736658923760,0.9563,3289.3,3288.6,6.1713]
[1736658924059,0.89177581,3289.2,3288.6,5.37]
[1736658924223,0.89177581,3289.2,3288.6,6.31607359]
[1736658924424,0.8089,3289.2,3288.7,0.0075]
[1736658931965,0.8089,3289.2,3288.6,5.37]
[1736658932769,0.8089,3289.0,3288.6,5.37]
[1736658935981,0.8089,3289.0,3288.5,3.3319359]
[1736658937076,0.204,3288.9,3288.5,3.3319359]
[1736658938337,0.8089,3288.8,3288.3,5.3775]
[1736658938538,0.8089,3288.8,3288.3,5.37]
[1736658938772,0.8089,3288.6,3288.3,5.37]
[1736658939877,1.102636,3288.6,3288.3,5.37]
[1736658940039,0.7608,3288.5,3288.3,5.37]
[1736658941982,0.7608,3288.5,3288.0,0.0075]
[1736658945428,0.11164139,3288.4,3288.0,0.0075]
[1736658945926,0.7608,3288.5,3288.0,0.0075]
[1736658947590,0.7608,3288.5,3288.0,0.0379099]
[1736658948146,0.7608,3288.5,3288.0,0.0075]
[1736658948534,0.7608,3288.5,3288.0,0.03790989]
[1736658949196,0.7608,3288.5,3288.0,0.0075]
[1736658949827,0.7608,3288.5,3288.0,0.03790989]
[1736658952176,0.7608,3288.5,3288.0,0.0075]
[1736658958611,0.11163671,3288.4,3288.0,0.0075]
[1736658958821,0.7608,3288.5,3288.0,0.0075]
[1736658960345,0.11163671,3288.4,3288.0,0.03790989]
[1736658960707,0.7608,3288.5,3288.0,0.0075]
[1736658961422,0.7608,3288.5,3288.1,1.2033259]
[1736658964111,0.205,3288.4,3288.1,1.2033259]
[1736658972629,0.205,3288.4,3288.0,0.0379099]
[1736658972831,0.205,3288.4,3288.0,0.0075]
[1736658975297,0.11153732,3288.3,3288.0,0.0075]
[1736658975895,0.205,3288.4,3288.0,0.0075]
[1736658977676,0.205,3288.4,3288.0,0.03790991]
[1736658978391,0.205,3288.4,3288.0,0.0075]
[1736658978557,0.205,3288.4,3288.0,0.03790991]
[1736658979613,0.205,3288.4,3288.0,0.0075]
[1736658983920,0.7677,3288.3,3287.7,0.8288]
[1736658984124,0.7677,3288.3,3287.6,5.37]
[1736658984327,0.7677,3288.1,3287.6,5.37]
[1736658984621,0.7677,3288.1,3287.7,0.22848889]
[1736658986000,0.7677,3288.1,3287.6,5.37]
[1736658990028,0.7677,3288.1,3287.5,1.2033259]
[1736658990340,0.7677,3288.1,3287.5,1.2337407]
[1736659000931,0.7677,3288.1,3287.5,1.2033259]
[1736659003364,0.8014,3288.0,3287.5,1.2033259]
[1736659003541,0.205,3287.9,3287.5,1.2033259]
[1736659003727,0.31001777,3287.9,3287.5,1.2033259]
[1736659006772,0.8014,3287.8,3287.3,5.37]
[1736659007092,0.10498882,3287.7,3287.3,5.37]
[1736659007228,0.8014,3287.6,3287.0,1.2033259]
[1736659007971,0.8014,3287.6,3287.0,1.2337449]
[1736659008433,0.8014,3287.6,3287.2,1.2033259]
[1736659009135,0.8014,3287.6,3287.1,0.22813678]
[1736659009361,0.8014,3287.6,3287.2,1.2033259]
[1736659011344,0.8014,3287.6,3287.0,2.160019]
[1736659011560,0.8014,3287.6,3287.1,1.2033259]
[1736659012235,0.8014,3287.6,3287.1,1.43152469]
[1736659013275,0.8014,3287.6,3287.2,0.22819879]
[1736659014249,0.8014,3287.6,3287.3,0.22819879]
[1736659014574,0.10454879,3287.5,3287.3,0.22819879]
[1736659015277,0.10454879,3287.5,3287.1,1.2033259]
[1736659015577,0.8014,3287.6,3287.1,1.2033259]
[1736659016483,0.8014,3287.6,3287.2,0.22829989]
[1736659017345,0.8014,3287.6,3287.3,0.22829989]
[1736659018444,0.8014,3287.6,3286.9,1.2033259]
[1736659019083,0.293055,3287.5,3286.9,1.2033259]
[1736659019236,0.763,3287.6,3286.9,1.2033259]
[1736659019437,0.763,3287.6,3287.0,0.22829298]
[1736659020384,0.763,3287.4,3287.0,0.22829298]
[1736659020789,0.10432624,3287.3,3286.9,1.2033259]
[1736659023413,0.10432624,3287.3,3287.0,0.22823857]
[1736659024664,0.10432624,3287.3,3286.9,1.2337462]
[1736659025198,0.10432624,3287.3,3286.9,1.2033259]
[1736659027107,0.10432624,3287.3,3287.0,0.22819102]
[1736659027818,0.30932624,3287.3,3287.0,0.22819102]
[1736659027964,0.30932624,3287.3,3286.9,1.2033259]
[1736659031366,0.763,3287.2,3286.9,1.2033259]
[1736659031770,0.10416366,3287.1,3286.9,1.2033259]
[1736659032249,0.10416366,3287.1,3286.7,1.7833259]
[1736659032414,0.763,3287.0,3286.4,1.2033259]
[1736659033299,2.12954,3287.1,3286.5,0.22822454]
[1736659033300,0.763,3286.8,3286.5,0.22822454]
[1736659034310,0.763,3286.8,3286.3,5.37]
[1736659035110,0.10369964,3286.7,3286.3,5.37]
[1736659035310,0.763,3286.8,3286.3,5.37]
[1736659036433,0.763,3286.8,3286.4,1.2033259]
[1736659042398,0.763,3286.8,3286.6,1.2033259]
[1736659042617,0.8075,3287.2,3286.6,1.2033259]
[1736659042909,0.10019299,3287.1,3286.6,1.2033259]
[1736659046408,0.205,3287.0,3286.6,1.2033259]
[1736659046810,0.10000228,3286.9,3286.6,1.2033259]
[1736659047942,0.10000228,3286.9,3286.5,0.8579243]
[1736659047943,0.10000228,3286.9,3286.8,1.2033259]
[1736659048447,0.205,3287.1,3286.6,1.2033259]
[1736659048945,0.8034,3287.4,3286.6,1.2033259]
[1736659049156,0.205,3287.0,3286.6,1.2033259]
[1736659049457,0.205,3287.0,3286.5,4.1911402]
[1736659050154,0.10004564,3286.9,3286.5,4.1911402]
[1736659050527,0.205,3287.0,3286.5,4.1911402]
[1736659053634,0.205,3287.0,3286.3,2.13005]
[1736659053857,0.8009,3286.9,3286.3,3.3333759]
[1736659054037,0.8009,3286.9,3286.3,1.2033259]
[1736659060742,0.8009,3286.9,3286.3,1.23375189]
[1736659061368,0.8009,3286.9,3286.4,0.22825812]
[1736659063145,0.8009,3286.9,3286.5,0.22825812]
[1736659064372,0.8009,3286.9,3286.5,1.2033259]
[1736659064872,0.205,3286.8,3286.5,1.2033259]
[1736659070553,2.12937,3287.4,3286.6,0.22840244]
[1736659070760,0.30541016,3287.3,3286.7,2.12979]
[1736659071055,0.8322,3287.2,3286.7,2.12979]
[1736659071839,0.205,3287.1,3286.7,2.12979]
[1736659072266,0.10027595,3287.0,3286.7,2.12979]
[1736659072461,0.30527595,3287.0,3286.7,2.12979]
[1736659072758,0.205,3287.0,3286.7,2.12979]
[1736659073283,0.205,3287.0,3286.6,0.565]
[1736659074272,0.205,3287.0,3286.7,0.22839277]
[1736659075390,0.205,3287.0,3286.6,0.565]
[1736659077664,0.205,3287.0,3286.7,0.2283846]
[1736659078992,0.8234,3286.9,3286.4,1.2033259]
[1736659079753,0.8234,3286.9,3286.2,1.2033259]
[1736659079993,0.09675299,3286.8,3286.2,1.2033259]
[1736659080288,0.09675299,3286.8,3286.5,0.22840624]
[1736659080493,0.8234,3286.9,3286.5,0.22840624]
[1736659080798,1.1392,3286.9,3286.5,0.22840624]
[1736659081461,1.1392,3286.9,3286.2,1.2033259]
[1736659081795,0.8234,3286.9,3286.2,1.2033259]
[1736659082396,0.8234,3286.9,3286.3,0.22839495]
[1736659082797,0.8234,3286.9,3286.3,0.2588208]
[1736659083158,0.8234,3286.9,3286.4,1.2033259]
[1736659083560,0.8234,3286.9,3286.4,1.43172085]
[1736659085118,0.8234,3286.9,3286.4,1.2033259]
[1736659085619,0.205,3287.0,3286.6,2.0246259]
[1736659085774,1.023,3287.3,3286.8,1.2033259]
[1736659086121,0.206,3287.4,3287.0,1.2033259]
[1736659086274,0.206,3287.4,3287.1,0.8213]
[1736659088716,3.0,3287.8,3287.1,0.8213]
[1736659089020,0.206,3287.4,3287.1,0.8213]
[1736659089616,0.59450661,3288.0,3287.0,1.23374517]
[1736659089617,0.817,3288.2,3287.3,0.8213]
[1736659089825,0.206,3288.0,3287.6,1.2033259]
[1736659089980,0.206,3288.0,3287.4,1.2033259]
[1736659095268,0.09733356,3287.9,3287.4,1.2033259]
[1736659096681,0.09733356,3287.9,3287.4,1.23374141]
[1736659097173,0.09733356,3287.9,3287.4,1.2033259]
[1736659097766,0.09733356,3287.9,3287.4,1.2337414]
[1736659099437,0.09733356,3287.9,3287.4,1.2033259]
[1736659099941,0.09733356,3287.9,3287.4,0.03041551]
[1736659101451,0.09733356,3287.9,3287.4,1.65218955]
[1736659106458,0.09733356,3287.9,3287.4,3.36307141]
[1736659108191,0.09733356,3287.9,3287.4,3.3326559]
[1736659108989,0.09733356,3287.9,3287.4,3.36307134]
[1736659114022,0.207,3287.8,3287.4,3.36307134]
[1736659114320,0.30364267,3287.8,3287.4,3.36307134]
[1736659114623,0.30364267,3287.8,3287.4,1.23374134]
[1736659114826,0.30364267,3287.8,3287.3,0.8213]
[1736659118686,0.30364267,3287.8,3287.4,0.22832179]
[1736659121830,0.30364267,3287.8,3287.3,0.8213]
[1736659122030,0.30364267,3287.8,3287.3,1.23670559]
[1736659122528,0.30364267,3287.8,3287.4,0.03041549]
[1736659123230,0.30364267,3287.8,3287.3,0.8213]
[1736659123836,0.30364267,3287.8,3287.4,0.22847171]
[1736659124891,0.30364267,3287.8,3287.4,0.0304155]
[1736659125092,0.30364267,3287.8,3287.3,0.8213]
[1736659127235,0.30364267,3287.8,3287.4,0.22847563]
[1736659128240,0.30364267,3287.8,3287.4,0.25889115]
[1736659128440,0.30364267,3287.8,3287.4,0.03041552]
[1736659132241,0.30364267,3287.8,3287.3,0.8213]
[1736659132416,0.30364267,3287.8,3287.4,0.03041555]
[1736659134766,0.30364267,3287.8,3287.1,0.7875]
[1736659134899,0.7863,3287.7,3287.0,5.37]
[1736659135104,0.7863,3287.6,3287.0,5.37]
[1736659135407,0.38801356,3287.5,3287.0,5.37]
[1736659136128,0.14151884,3287.4,3287.0,5.37]
[1736659136431,0.09639063,3287.3,3287.0,5.37]
[1736659139744,0.09639063,3287.3,3286.8,1.2033259]
[1736659140109,0.09639063,3287.3,3286.6,2.0106259]
[1736659140444,0.14151884,3287.4,3286.6,2.46056911]
[1736659141042,0.14151884,3287.4,3286.6,2.0106259]
[1736659141043,0.8001,3287.3,3286.6,2.0106259]
[1736659141563,2.92964,3287.1,3286.2,2.0106259]
[1736659141763,1.0061,3287.0,3286.7,0.22824108]
[1736659142565,0.8001,3286.9,3286.7,0.22824108]
[1736659142878,0.8001,3286.9,3286.3,0.22824108]
[1736659143225,2.92978,3286.9,3286.3,0.22824108]
[1736659143412,3.243358,3286.9,3286.3,0.22824108]
[1736659143608,0.8001,3286.8,3286.3,0.22824108]
[1736659144051,0.8001,3286.8,3286.2,1.2033259]
[1736659144258,0.8001,3286.8,3286.2,1.23375298]
[1736659144408,0.8001,3286.8,3286.2,1.2033259]
[1736659150120,0.8001,3286.8,3285.0,4.4688501]
[1736659150121,3.8001,3286.0,3285.0,4.4688501]
[1736659150349,0.8001,3285.2,3284.5,4.4688501]
[1736659150547,1.51619821,3285.1,3284.5,4.4688501]
[1736659150749,4.51619821,3285.1,3284.5,4.4688501]
[1736659150954,4.51619821,3285.1,3284.0,0.31737806]
[1736659150955,0.89449493,3285.0,3284.0,0.31737806]
[1736659151155,0.89449493,3285.0,3283.7,6.1773]
[1736659151156,2.13103,3284.8,3283.7,6.5733259]
[1736659151354,0.8001,3284.7,3283.7,6.5733259]
[1736659151673,3.02479694,3284.7,3283.7,6.5733259]
[1736659152347,3.02479694,3284.7,3283.8,0.0075]
[1736659152571,3.02479694,3284.7,3283.9,0.65808259]
[1736659152775,3.02479694,3284.7,3283.9,1.89185625]
[1736659153376,3.02479694,3284.7,3283.9,0.68853035]
[1736659154966,3.02479694,3284.7,3283.9,0.03044776]
[1736659155160,3.02479694,3284.7,3283.8,0.03794777]
[1736659155359,2.93119,3284.7,3283.8,0.03794777]
[1736659155792,0.09256575,3284.6,3283.8,0.03794777]
[1736659156092,2.93119,3284.7,3283.8,0.03794777]
[1736659156265,2.93119,3284.7,3283.8,0.50919386]
[1736659156683,2.93119,3284.7,3283.8,0.47874609]
[1736659158889,2.13116,3284.6,3283.8,0.47124609]
[1736659159796,2.13116,3284.6,3283.8,0.50169471]
[1736659160707,2.13116,3284.6,3283.8,0.47124609]
[1736659161316,2.9312,3284.7,3283.6,0.58]
[1736659162504,2.9312,3284.7,3283.6,2.7118]
[1736659162710,2.9312,3284.7,3283.7,0.03044863]
[1736659162899,2.9312,3284.7,3283.7,2.16217863]
[1736659163100,0.206,3284.6,3283.7,2.16217863]
[1736659163281,0.206,3284.6,3283.8,0.52848917]
[1736659163612,0.08930996,3284.5,3283.8,0.52848917]
[1736659171263,0.208,3284.4,3283.8,0.52848917]
[1736659171728,0.08881412,3284.3,3283.8,0.52848917]